[Event "Israel Team Ch Under 18"]
[Site "Jerusalem"]
[Date "2017.08.13"]
[Round "2"]
[White "Fainman, Tomer"]
[Black "Kadria, Shay"]
[Result "1-0"]
[ECO "E71"]
[WhiteElo "1976"]
[BlackElo "1784"]
[Annotator "NA"]
[PlyCount "45"]
[EventDate "2017.??.??"]
[EventType "swiss"]
[EventCountry "ISR"]
[SourceTitle "playchess.com"]
[Source "ChessBase"]
[SourceQuality "1"]
[TimeControl "40/5400+30:1800+30"]

{[%evp 18,45,4,0,4,27,34,12,16,9,33,-10,8,6,57,32767,56,12,32767,32767,32767,27,47,36,89,32767,32767,32767,32767,571]} 1. d4 {[%emt 0:40:12]} Nf6 {[%emt 0:40:50]} 2. c4 {[%emt 0:00:25]} g6 {[%emt 0:00:29]} 3. Nc3 {[%emt 0:00:24]} Bg7 {[%emt 0:00:28]} 4. e4 {[%emt 0:00:22]} d6 {[%emt 0:00:30]} 5. h3 {[%emt 0:00:25]} O-O {[%emt 0:00:55]} 6. Nf3 {[%emt 0:00:26]} Nbd7 {[%emt 0:01:12]} 7. Be3 {[%emt 0:01:13]} e5 {[%emt 0:01:26]} 8. dxe5 {[%emt 0:01:14]} dxe5 {[%emt 0:00:48]} 9. Bd3 {[%emt 0:01:44] E90: King's Indian: Classical: Early deviations and 6 h3} (9. Be2 Qe7 10. O-O c6 11. Qc2 Nh5 12. Rfe1 Nf4 13. Bf1 Qf6 14. Kh2 Re8 15. Ne2 Ne6 16. c5 Qe7 17. b4 a5 18. a3 {½-½ (18) Fedorchuk,S (2641)-Pavlov,S (2485) Minsk 2014}) 9... c6 {[%emt 0:01:15]} 10. Qd2 {[%emt 0:00:54]} Qc7 $146 {[%emt 0:02:08]} ({Predecessor:} 10... Qe7 11. Rd1 Re8 12. O-O Nh5 13. Rfe1 Bf8 14. a3 a5 {0-1 (47) Tyszkiewicz,Z (2109)-Siekaniec,J (2196) Gniezno 2007}) 11. O-O {[%emt 0:01:46]} Rd8 {[%emt 0:01:34]} 12. Rfd1 {[%emt 0:02:23]} Nf8 {[%emt 0:01:17]} 13. Qc2 {[%emt 0:02:06]} Ne6 {[%emt 0:01:27]} 14. Ne2 {[%emt 0:01:18]} Nh5 {[%emt 0:04:21]} 15. c5 {[%emt 0:01:40]} Qe7 {[%emt 0:02:42]} 16. Rab1 {[%emt 0:01:17]} h6 {[%emt 0:12:12]} 17. b4 {[%emt 0:00:26]} g5 {[%emt 0:00:45]} 18. Bc4 {[%emt 0:01:59]} Bd7 {[%emt 0:00:59]} 19. g3 {[%emt 0:05:41]} (19. Rd6 $16) 19... Nf8 {[%emt 0:06:17]} 20. Kg2 {[%emt 0:00:53]} Ng6 {[%emt 0:00:55]} 21. Rd6 {[%emt 0:01:47]} g4 {[%emt 0:00:37]} 22. hxg4 {[%emt 0:00:43]} Bxg4 {[%emt 0:00:30]} 23. Rxg6 $18 {[%emt 0:00:30]} 1-0

[Event "Israel Team Ch Under 18"]
[Site "Jerusalem"]
[Date "2017.08.13"]
[Round "2"]
[White "Slobodiansky, Steven"]
[Black "Ehrlich, Roy"]
[Result "0-1"]
[ECO "C17"]
[WhiteElo "1963"]
[BlackElo "1884"]
[Annotator "NA"]
[PlyCount "52"]
[EventDate "2017.??.??"]
[EventType "swiss"]
[EventCountry "ISR"]
[SourceTitle "playchess.com"]
[Source "ChessBase"]
[SourceQuality "1"]
[TimeControl "40/5400+30:1800+30"]

1. e4 {[%emt 0:40:20]} e6 {[%emt 0:40:48]} 2. d4 {[%emt 0:00:25]} d5 {[%emt 0:00:24]} 3. Nc3 {[%emt 0:00:28]} Bb4 {[%emt 0:00:25]} 4. e5 {[%emt 0:00:26]} c5 {[%emt 0:00:25]} 5. Bd2 {[%emt 0:00:24]} Ne7 {[%emt 0:00:26]} 6. a3 {[%emt 0:00:28]} Bxc3 {[%emt 0:01:37]} 7. Bxc3 {[%emt 0:00:38]} cxd4 {[%emt 0:00:59]} 8. Qxd4 {[%emt 0:00:38]} Nbc6 {[%emt 0:02:32]} 9. Qg4 {[%emt 0:01:20] C17: French: 3 Nc3 Bb4 4 e5 c5 sidelines} Nf5 {[%emt 0:07:24] LiveBook: 7 Games} 10. Nf3 {[%emt 0:03:06]} Qb6 {[%emt 0:02:10]} (10... h5 11. Qf4 Bd7 12. Bd3 Nce7 13. O-O Rc8 14. Bb4 Ng6 15. Qd2 Nfh4 16. Nxh4 Qxh4 {1-0 (33) Bartel,M (2664)-Savchenko,B (2599) Wroclaw 2014}) 11. Bd3 {[%emt 0:07:13]} h5 $146 {[%emt 0:06:05]} ({Find the theoretical novelty and annotate with similar games:} 11... Nce7 12. O-O Bd7 13. Bb4 Bb5 14. Bxe7 Kxe7 15. Qb4+ {1-0 (15) Nomin Erdene,D (2424)-Konstantinov,A (2055) Novi Sad 2015}) 12. Qg5 {[%emt 0:02:57]} Qd8 {[%emt 0:05:57]} 13. Qxd8+ {[%emt 0:03:58]} Kxd8 {[%emt 0:00:43]} 14. O-O-O {[%emt 0:00:32]} Nfe7 {[%emt 0:04:15]} 15. Ng5 {[%emt 0:01:27]} Ke8 {[%emt 0:01:21]} 16. f4 {[%emt 0:00:35]} Bd7 {[%emt 0:05:16]} 17. h3 {[%emt 0:01:28]} d4 {[%emt 0:02:01]} 18. Bd2 {[%emt 0:01:29]} h4 {[%emt 0:01:34]} 19. Rhf1 $16 {[%emt 0:05:39]} f6 {[%emt 0:01:33]} 20. exf6 {[%emt 0:00:26]} gxf6 {[%emt 0:00:28]} 21. Ne4 {[%emt 0:00:22]} Nd5 {[%emt 0:01:22]} 22. Nd6+ {[%emt 0:00:39]} Ke7 {[%emt 0:00:25]} 23. Nxb7 {[%emt 0:00:27]} Rhg8 {[%emt 0:01:04]} 24. Be4 {[%emt 0:00:48]} Nb6 {[%emt 0:02:23]} 25. Nc5 {[%emt 0:00:47]} Kd6 {[%emt 0:01:19]} 26. Bb4 {[%emt 0:01:03]} Nxb4 {[%emt 0:01:40]} 0-1

[Event "Israel Team Ch Under 18"]
[Site "Jerusalem"]
[Date "2017.08.13"]
[Round "2"]
[White "Kupervaser, Erez"]
[Black "Efrati, Alon"]
[Result "1-0"]
[ECO "D00"]
[WhiteElo "1868"]
[BlackElo "1661"]
[Annotator "NA RC"]
[PlyCount "61"]
[EventDate "2017.??.??"]
[EventType "swiss"]
[EventCountry "ISR"]
[SourceTitle "playchess.com"]
[Source "ChessBase"]
[SourceQuality "1"]
[TimeControl "40/5400+30:1800+30"]

1. d4 {[%emt 0:40:12]} d5 {[%emt 0:40:46]} 2. Nc3 {[%emt 0:00:24]} Nf6 {[%emt 0:00:25]} 3. Bf4 {[%emt 0:00:24]} Bf5 {[%emt 0:00:41]} 4. f3 {[%emt 0:00:27]} e6 {[%emt 0:00:55]} 5. g4 {[%emt 0:00:28]} Bg6 {[%emt 0:00:26]} 6. h4 {[%emt 0:00:21]} h6 {[%emt 0:01:13] LiveBook: 44 Games} 7. e3 {[%emt 0:00:21]} Bd6 {[%emt 0:02:00]} 8. Nh3 {[%emt 0:00:53]} Be7 {[%emt 0:05:25]} 9. Nf2 {[%emt 0:01:44]} Nfd7 {[%emt 0:01:14]} 10. Bg3 {[%emt 0:01:22]} a6 $14 {[%emt 0:01:40]} 11. Nd3 {[%emt 0:05:53]} c5 {[%emt 0:01:41]} 12. Nf4 {[%emt 0:00:33]} Bh7 {[%emt 0:00:42]} 13. Bd3 {[%emt 0:00:22]} Bxd3 {[%emt 0:00:54]} 14. Qxd3 {[%emt 0:00:22]} Nc6 {[%emt 0:00:51]} 15. Nce2 {[%emt 0:03:12]} Rc8 {[%emt 0:03:19]} 16. c3 {[%emt 0:01:59]} cxd4 {[%emt 0:01:03]} 17. exd4 {[%emt 0:00:25]} Nb6 {[%emt 0:01:22]} 18. Kf2 {[%emt 0:03:59]} Nc4 {[%emt 0:02:57]} 19. b3 {[%emt 0:00:41]} Nd6 {[%emt 0:00:27]} 20. Rae1 {[%emt 0:01:37]} b5 {[%emt 0:02:38]} 21. g5 {[%emt 0:03:15]} g6 {[%emt 0:08:11]} 22. h5 {[%emt 0:04:09]} hxg5 {[%emt 0:02:03]} 23. hxg6 {[%emt 0:01:33]} Rxh1 {[%emt 0:01:34]} 24. Rxh1 {[%emt 0:00:20]} Kd7 {[%emt 0:01:47]} 25. Ng2 {[%emt 0:01:27]} Qg8 {[%emt 0:02:22]} 26. gxf7 {[%emt 0:01:21]} Qxf7 {[%emt 0:00:24]} 27. Ne3 {[%emt 0:00:40]} Rf8 {[%emt 0:01:16]} 28. Ng4 {[%emt 0:02:39]} Ne4+ {[%emt 0:02:26]} 29. Kg2 {[%emt 0:00:21]} Nxg3 {[%emt 0:00:49]} 30. Nxg3 {[%emt 0:00:22]} Qf4 {[%emt 0:01:07]} 31. Rh6 {[%emt 0:02:47]} 1-0

[Event "Israel Team Ch Under 18"]
[Site "Jerusalem"]
[Date "2017.08.13"]
[Round "2"]
[White "Stolyarsky, Yegor"]
[Black "Tillinger, Aviv"]
[Result "*"]
[ECO "C54"]
[WhiteElo "1860"]
[BlackElo "1815"]
[Annotator "NA"]
[PlyCount "60"]
[EventDate "2017.??.??"]
[EventType "swiss"]
[EventCountry "ISR"]
[SourceTitle "playchess.com"]
[Source "ChessBase"]
[SourceQuality "1"]
[TimeControl "40/5400+30:1800+30"]

{[%evp 10,57,17,4,32767,32767,32767,32767,32767,32767,32767,32767,32767,32767,32767,0,21,9,32,-76,-94,-93,-68,32767,32767,32767,32767,32767,32767,32767,32767,32767,32767,32767,-43,32767,-56,-56,-65,-121,-122,-166,-160,-159,-158,-149,-133,32767,-188,-178]} 1. e4 e5 2. Nf3 Nc6 3. Bc4 Bc5 4. c3 Nf6 5. d3 d6 6. Nbd2 Bb6 7. O-O Ne7 {C54: Giuoco Piano: 4 c3 Nf6, main lines with 5 d4 and 5 d3} 8. h3 c6 9. Re1 O-O 10. Nf1 h6 11. Ng3 Ng6 12. Bb3 d5 13. exd5 $146 ({Predecessor:} 13. Be3 Bc7 14. Qc2 Re8 15. Rad1 {½-½ (41) Predojevic,B (2609)-Sokolov,I (2655) Sarajevo 2007}) 13... Nxd5 14. Nxe5 (14. d4 $11) 14... Nxe5 15. Rxe5 {[#]} Bxf2+ $1 16. Kxf2 Qf6+ 17. Rf5 Bxf5 18. Qf3 Bxd3 19. Bxd5 cxd5 20. Qxf6 gxf6 21. Bxh6 Rfe8 22. Rd1 Be4 23. Rd4 Rac8 24. Nxe4 (24. Be3 $15) 24... dxe4 25. Ke3 f5 26. Rd5 Kh7 27. Bf4 Kg6 28. Rd7 {[#]} Re6 $1 29. Rxb7 $19 Rb6 30. Rxb6+ axb6 *

[Event "Israel Team Ch Under 18"]
[Site "Jerusalem"]
[Date "2017.08.13"]
[Round "2"]
[White "Katkov, Michelle"]
[Black "Garber, Tal"]
[Result "0-1"]
[ECO "B22"]
[WhiteElo "1822"]
[BlackElo "1835"]
[Annotator "NA"]
[PlyCount "42"]
[EventDate "2017.??.??"]
[EventType "swiss"]
[EventCountry "ISR"]
[SourceTitle "playchess.com"]
[Source "ChessBase"]
[SourceQuality "1"]
[TimeControl "40/5400+30:1800+30"]

{[%evp 12,40,47,32767,32767,32767,32767,32767,32767,32767,32767,79,109,0,0,0,0,0,15,32767,32767,32767,32767,32767,32767,32767,20,0,1,0,57]} 1. e4 c5 2. c3 d5 3. exd5 Qxd5 4. d4 Nc6 5. Nf3 Bf5 {B22: Sicilian: 2 c3} 6. Be2 (6. Be3 Nf6 7. Qb3 cxd4 8. Nxd4 Nxd4 9. Bxd4 a6 10. Nd2 e6 11. Be2 O-O-O 12. Nc4 Bc5 13. O-O Be4 14. Rfd1 {1-0 (32) Jones,G (2676)-Pichot,A (2556) Sharjah 2017}) 6... e6 7. O-O Nf6 8. Be3 cxd4 9. cxd4 Be7 10. Nc3 Qd7 $146 ({Find the theoretical novelty and annotate with similar games:} 10... Qd6 11. Qb3 O-O 12. Rfd1 Nb4 13. Rac1 {½-½ (48) Wiesner,P (2103)-Ambartsumova,K (2284) Germany 2015}) 11. Ne5 Qc7 12. Nxc6 (12. g4 $16 Bg6 13. f4) 12... bxc6 13. Rc1 O-O 14. Bf3 Qd6 15. Qa4 Nd5 16. Ne4 Bxe4 17. Bxe4 Rfc8 18. Rfd1 h6 19. Bb1 Rab8 20. Qc2 Bf6 $14 (20... f5 $11) 21. Qe4 Qb4 0-1

[Event "Israel Team Ch Under 18"]
[Site "Jerusalem"]
[Date "2017.08.13"]
[Round "2"]
[White "Rozen, Eytan"]
[Black "Rotem Furshpan, Nir"]
[Result "1-0"]
[ECO "C06"]
[WhiteElo "1751"]
[BlackElo "1410"]
[Annotator "NA"]
[PlyCount "29"]
[EventDate "2017.??.??"]
[EventType "swiss"]
[EventCountry "ISR"]
[SourceTitle "playchess.com"]
[Source "ChessBase"]
[SourceQuality "1"]
[TimeControl "40/5400+30:1800+30"]

1. e4 {[%emt 0:40:15]} e6 {[%emt 0:40:48]} 2. d4 {[%emt 0:00:25]} d5 {[%emt 0:00:25]} 3. Nd2 {[%emt 0:00:34]} Nf6 {[%emt 0:00:29]} 4. e5 {[%emt 0:00:45]} Nfd7 {[%emt 0:00:24]} 5. Bd3 {[%emt 0:00:40]} c5 {[%emt 0:00:35]} 6. c3 {[%emt 0:00:29]} Nc6 {[%emt 0:00:39]} 7. Ne2 {[%emt 0:01:08]} cxd4 {[%emt 0:00:45]} 8. cxd4 {[%emt 0:00:29]} f6 {[%emt 0:00:31]} 9. Nf4 $14 {[%emt 0:05:25] LiveBook: 339 Games} g6 {[%emt 0:14:10]} 10. Nxe6 {[%emt 0:04:13]} Qb6 {[%emt 0:00:44]} 11. Nxf8 {[%emt 0:23:21]} Kxf8 {[%emt 0:01:03]} 12. Nb3 {[%emt 0:05:56]} Nxd4 {[%emt 0:04:33]} 13. Bh6+ {[%emt 0:05:33]} Ke7 {[%emt 0:06:15]} 14. exf6+ {[%emt 0:02:14]} Nxf6 {[%emt 0:01:25]} 15. Be3 {[%emt 0:02:16]} 1-0

[Event "Israel Team Ch Under 18"]
[Site "Jerusalem"]
[Date "2017.08.13"]
[Round "2"]
[White "Vaisgur, Alon"]
[Black "Shohat, Yotam"]
[Result "0-1"]
[ECO "B36"]
[WhiteElo "1743"]
[BlackElo "2041"]
[Annotator "NA"]
[PlyCount "56"]
[EventDate "2017.??.??"]
[EventType "swiss"]
[EventCountry "ISR"]
[SourceTitle "playchess.com"]
[Source "ChessBase"]
[SourceQuality "1"]
[TimeControl "40/5400+30:1800+30"]

{[%evp 23,53,35,49,46,52,0,0,32767,32767,32767,32767,32767,32767,0,0,0,0,-10,-16,-33,-21,-22,-14,-27,-13,-110,-98,-109,-102,-97,-125,-122]} 1. e4 {[%emt 0:40:14]} c5 {[%emt 0:40:47]} 2. Nf3 {[%emt 0:00:27]} g6 {[%emt 0:00:25]} 3. d4 cxd4 {[%emt 0:00:27]} 4. Nxd4 {[%emt 0:00:54]} Nc6 {[%emt 0:00:26]} 5. c4 {[%emt 0:00:29]} Nf6 {[%emt 0:00:28]} 6. Nc3 {[%emt 0:00:28]} d6 {[%emt 0:00:26]} 7. Be2 {[%emt 0:00:51]} Nxd4 {[%emt 0:00:27]} 8. Qxd4 {[%emt 0:00:26]} Bg7 {[%emt 0:00:24]} 9. Qd1 {[%emt 0:01:01]} O-O {[%emt 0:00:34]} 10. Be3 {[%emt 0:01:24]} Qa5 {[%emt 0:00:54]} 11. O-O {[%emt 0:01:25]} Be6 {[%emt 0:00:41]} 12. Rc1 {[%emt 0:05:35]} Rfc8 {[%emt 0:01:15]} 13. b3 {[%emt 0:01:11]} a6 {[%emt 0:03:16] LiveBook: 4 Games} 14. Qd2 {[%emt 0:04:16]} b5 {[%emt 0:05:39]} 15. Nd5 {[%emt 0:04:59]} Qxd2 {[%emt 0:00:50]} 16. Bxd2 {[%emt 0:00:24]} Bxd5 {[%emt 0:00:51]} 17. exd5 {[%emt 0:01:04]} Ne4 {[%emt 0:02:32]} 18. Be1 {[%emt 0:05:01]} a5 {[%emt 0:11:10]} 19. f3 {[%emt 0:01:59]} Nf6 {[%emt 0:01:21]} 20. Bc3 {[%emt 0:01:55]} b4 {[%emt 0:00:51]} 21. Bxf6 {[%emt 0:00:55]} Bxf6 {[%emt 0:00:36]} 22. f4 {[%emt 0:03:54]} Bd4+ {[%emt 0:00:47]} 23. Kh1 {[%emt 0:00:27]} a4 {[%emt 0:02:38]} 24. f5 {[%emt 0:01:10]} (24. Bd1 $1 $11 {remains equal.}) 24... axb3 {[%emt 0:02:39]} 25. axb3 {[%emt 0:00:23]} Ra2 {[%emt 0:01:45]} 26. Bg4 {[%emt 0:02:59]} Rca8 {[%emt 0:03:55]} 27. fxg6 $17 {[%emt 0:00:42]} hxg6 {[%emt 0:00:22]} 28. Bd7 {[%emt 0:00:40]} R8a3 {[%emt 0:04:36]} 0-1

[Event "Israel Team Ch Under 18"]
[Site "Jerusalem"]
[Date "2017.08.13"]
[Round "2"]
[White "Kotler, Yiftah"]
[Black "Chachashvili, Zuri"]
[Result "1/2-1/2"]
[ECO "B92"]
[WhiteElo "1715"]
[BlackElo "1911"]
[Annotator "NA RC"]
[PlyCount "29"]
[EventDate "2017.??.??"]
[EventType "swiss"]
[EventCountry "ISR"]
[SourceTitle "playchess.com"]
[Source "ChessBase"]
[SourceQuality "1"]
[TimeControl "40/5400+30:1800+30"]

1. e4 {[%emt 0:40:11]} c5 {[%emt 0:40:57]} 2. Nf3 {[%emt 0:00:29]} d6 {[%emt 0:01:26]} 3. d4 {[%emt 0:00:32]} cxd4 {[%emt 0:01:05]} 4. Nxd4 {[%emt 0:00:30]} Nf6 {[%emt 0:00:30]} 5. Nc3 {[%emt 0:00:30]} a6 {[%emt 0:02:11]} 6. Be2 {[%emt 0:01:20]} e5 {[%emt 0:01:12]} 7. Nb3 {[%emt 0:00:31]} Be6 {[%emt 0:01:36]} 8. O-O {[%emt 0:00:51]} Nbd7 {[%emt 0:01:07]} 9. Be3 {[%emt 0:00:54]} Be7 {[%emt 0:01:17]} 10. a4 {[%emt 0:01:26]} Rc8 {[%emt 0:02:41]} 11. f4 {[%emt 0:04:44]} O-O {[%emt 0:01:23]} 12. Kh1 {[%emt 0:01:13]} Bc4 {[%emt 0:01:41]} 13. Bxc4 {[%emt 0:01:44]} Rxc4 {[%emt 0:00:41]} 14. Qd3 {[%emt 0:03:33]} Rc6 {[%emt 0:01:49]} 15. Rad1 {[%emt 0:01:33]} 1/2-1/2

[Event "Israel Team Ch Under 18"]
[Site "Jerusalem"]
[Date "2017.08.13"]
[Round "2"]
[White "Efrati, Alon"]
[Black "Kupervaser, Erez"]
[Result "*"]
[ECO "D00"]
[WhiteElo "1661"]
[BlackElo "1868"]
[Annotator "NA"]
[PlyCount "20"]
[EventDate "2017.??.??"]
[EventType "swiss"]
[EventCountry "ISR"]
[SourceTitle "playchess.com"]
[Source "ChessBase"]
[SourceQuality "1"]
[TimeControl "40/5400+30:1800+30"]

{[%evp 12,20,16,13,32767,32767,43,18,29,8,35]} 1. d4 {[%emt 0:40:12]} d5 {[%emt 0:40:46]} 2. Nc3 {[%emt 0:00:24]} Nf6 {[%emt 0:00:25]} 3. Bf4 {[%emt 0:00:24]} Bf5 {[%emt 0:00:41]} 4. f3 {[%emt 0:00:27]} e6 {[%emt 0:00:55]} 5. g4 {[%emt 0:00:28]} Bg6 {[%emt 0:00:26]} 6. h4 {[%emt 0:00:21]} h6 {[%emt 0:01:13] LiveBook: 44 Games} 7. e3 {[%emt 0:00:21]} Bd6 {[%emt 0:02:00]} 8. Nh3 {[%emt 0:00:53]} Be7 {[%emt 0:05:25]} 9. Nf2 {[%emt 0:01:44]} Nfd7 {[%emt 0:01:14]} 10. Bg3 {[%emt 0:01:22]} a6 $14 {[%emt 0:01:40]} *

[Event "Israel Team Ch Under 18"]
[Site "Jerusalem"]
[Date "2017.08.14"]
[Round "4"]
[White "Hochman, Elnatan"]
[Black "Stolyarsky, Yegor"]
[Result "1-0"]
[ECO "B09"]
[WhiteElo "2097"]
[BlackElo "1860"]
[Annotator "NA RC"]
[PlyCount "117"]
[EventDate "2017.??.??"]
[EventType "swiss"]
[EventCountry "ISR"]
[SourceTitle "playchess.com"]
[Source "ChessBase"]
[SourceQuality "1"]
[TimeControl "40/5400+30:1800+30"]

{[%evp 9,66,40,29,25,31,7,18,-14,-4,-10,-4,-52,51,32,83,62,56,84,72,38,50,-56,20,18,35,0,21,0,265,257,252,259,268,278,257,267,267,279,32767,269,251,268,315,272,270,287,266,303,347,341,346,32767,32767,32767,32767,368,392,333,366]} 1. d4 {[%emt 0:40:13]} Nf6 {[%emt 0:41:32]} 2. Nc3 {[%emt 0:00:24]} g6 {[%emt 0:00:37]} 3. e4 {[%emt 0:00:21]} d6 {[%emt 0:00:34]} 4. f4 {[%emt 0:00:25]} Bg7 {[%emt 0:00:41]} 5. Nf3 {[%emt 0:00:26]} O-O {[%emt 0:01:05]} 6. e5 dxe5 {[%emt 0:03:10]} 7. fxe5 {[%emt 0:01:13]} Nd5 {[%emt 0:03:26]} 8. Ne4 {[%emt 0:00:48]} Bf5 {[%emt 0:01:29] B09: Pirc Defence: Austrian Attack} 9. Ng3 {[%emt 0:00:33]} Bg4 {[%emt 0:02:00] LiveBook: 4 Games} 10. Be2 {[%emt 0:00:43]} Nc6 $146 {[%emt 0:01:15]} ({Predecessor:} 10... c5 $15 11. h3 Bxf3 12. Bxf3 cxd4 13. Qxd4 e6 14. Bxd5 Nc6 15. Qf2 Qxd5 16. O-O Nxe5 {½-½ (42) Lefebvre,H (2268)-Rausis,I (2466) Uxbridge 2010}) 11. c3 {[%emt 0:04:16]} Qd7 {[%emt 0:04:23]} 12. h3 {[%emt 0:03:23]} Bxf3 {[%emt 0:03:19]} 13. Bxf3 {[%emt 0:01:58]} Rad8 {[%emt 0:01:46]} 14. h4 {[%emt 0:04:02]} f6 {[%emt 0:02:27]} 15. Bg4 {[%emt 0:06:07]} ({Better is} 15. exf6 $1 $14 exf6 16. O-O) 15... Qe8 {[%emt 0:02:34]} (15... e6 $1 $15 16. exf6 Nxf6) 16. Be6+ {[%emt 0:09:12]} Kh8 {[%emt 0:00:45]} 17. h5 {[%emt 0:01:18]} fxe5 {[%emt 0:02:46]} 18. Qg4 {[%emt 0:01:34]} Nf4 $2 {[%emt 0:03:27]} (18... Rf6 $14) 19. Bxf4 $1 {[%emt 0:01:31]} Rxf4 {[%emt 0:01:33] [#]} 20. hxg6 $1 {[%emt 0:00:32]} h6 {[%emt 0:02:31]} 21. Qg5 {[%emt 0:02:43]} Qf8 {[%emt 0:03:44]} 22. d5 Na5 {[%emt 0:03:58]} 23. O-O-O {[%emt 0:10:05]} Nc4 {[%emt 0:08:06]} 24. Nf5 {[%emt 0:03:32]} Rxf5 {[%emt 0:01:16]} 25. Bxf5 {[%emt 0:00:46]} ({Less strong is} 25. Qxf5 Qxf5 26. Bxf5 Ne3 $16) 25... Ne3 {[%emt 0:01:52]} 26. Qxe3 {[%emt 0:01:24]} Qxf5 {[%emt 0:00:24]} 27. Rxh6+ {[%emt 0:02:31]} Kg8 {[%emt 0:00:26]} 28. Rh3 {[%emt 0:00:33]} Qxg6 {[%emt 0:01:05]} 29. Rg3 {[%emt 0:01:07]} Qf6 {[%emt 0:00:35]} 30. Rh1 {[%emt 0:01:51]} Qf4 {[%emt 0:00:45]} 31. Qxf4 {[%emt 0:00:59]} exf4 {[%emt 0:00:22]} 32. Rg5 {[%emt 0:00:30]} Rf8 {[%emt 0:01:29]} 33. Kd2 {[%emt 0:00:49]} Rf6 $18 {[%emt 0:00:48]} 34. Kd3 {[%emt 0:00:48]} f3 {[%emt 0:00:47]} 35. gxf3 {[%emt 0:00:29]} Rxf3+ {[%emt 0:00:28]} 36. Ke4 {[%emt 0:00:21]} Rf7 {[%emt 0:00:36]} 37. Rhg1 {[%emt 0:00:42]} Kh7 {[%emt 0:00:28]} 38. Rf5 {[%emt 0:00:27]} Kg8 {[%emt 0:00:38]} 39. Rxf7 {[%emt 0:00:22]} Kxf7 {[%emt 0:00:22]} 40. Kf5 {[%emt 0:00:26]} Bf6 {[%emt 0:30:25]} 41. Rh1 {[%emt 0:30:22]} b6 {[%emt 0:00:39]} 42. Rh7+ {[%emt 0:00:40]} Bg7 {[%emt 0:00:36]} 43. Rxg7+ {[%emt 0:00:41]} Kxg7 {[%emt 0:00:22]} 44. Ke6 {[%emt 0:00:20]} Kf8 {[%emt 0:00:39]} 45. Kd7 {[%emt 0:00:21]} Kf7 {[%emt 0:00:29]} 46. Kxc7 {[%emt 0:00:22]} Kf6 {[%emt 0:00:23]} 47. d6 {[%emt 0:00:21]} exd6 {[%emt 0:00:29]} 48. Kxd6 {[%emt 0:00:21]} Kf5 {[%emt 0:00:23]} 49. Kc6 {[%emt 0:00:30]} Ke4 {[%emt 0:00:23]} 50. Kb7 {[%emt 0:00:24]} Kd3 {[%emt 0:00:48]} 51. Kxa7 {[%emt 0:00:22]} b5 {[%emt 0:00:21]} 52. Kb6 {[%emt 0:00:25]} Kc4 {[%emt 0:00:32]} 53. b3+ {[%emt 0:00:28]} Kxc3 {[%emt 0:00:23]} 54. Kxb5 {[%emt 0:00:22]} Kb2 {[%emt 0:00:34]} 55. a4 {[%emt 0:00:21]} Kxb3 {[%emt 0:00:21]} 56. a5 {[%emt 0:00:21]} Kb2 {[%emt 0:00:21]} 57. a6 {[%emt 0:00:22]} Kc3 {[%emt 0:00:22]} 58. a7 {[%emt 0:00:21]} Kb3 {[%emt 0:00:21]} 59. a8=Q {[%emt 0:00:22]} 1-0